bitfinex-derivatives/quotes_SOLF0:USTF0_20251126
["timestamp","ask_amount","ask_price","bid_price","bid_amount"]
[1764178270613,0.05391315,138.57,138.55,0.04951752]
[1764178271306,3.16391315,138.57,138.55,0.04951752]
[1764178272102,0.05391315,138.57,138.55,0.04951752]
[1764178273109,0.05391315,138.57,138.55,2.95951752]
[1764178273505,107.95328673,138.68,138.55,2.95951752]
[1764178273506,3.11,138.65,138.55,110.54041752]
[1764178273705,3.11,138.65,138.55,110.4909]
[1764178273910,9.6043,138.64,138.52,107.6019]
[1764178274108,3.11,138.63,138.52,133.0819]
[1764178274303,3.11,138.63,138.52,198.0119]
[1764178274508,3.11,138.61,138.52,64.91]
[1764178274712,0.05222826,138.59,138.56,0.05531605]
[1764178275099,3.16222826,138.59,138.56,0.05531605]
[1764178275302,0.05222826,138.59,138.56,0.05531605]
[1764178275507,3.11,138.64,138.57,101.0686]
[1764178275708,3.11,138.68,138.58,101.0589]
[1764178275914,3.11,138.68,138.59,6.4958]
[1764178276210,3.11,138.66,138.57,2.91]
[1764178276419,9.6034,138.65,138.56,6.4972]
[1764178276618,3.16286923,138.62,138.6,0.05334747]
[1764178278612,3.16286923,138.62,138.53,2.91]
[1764178278811,3.11,138.62,138.53,104.0036]
[1764178279011,3.11,138.6,138.51,6.4998]
[1764178279322,3.11,138.6,138.51,104.0188]
[1764178279614,3.11,138.6,138.51,2.91]
[1764178279814,0.04914845,138.57,138.54,104.04042561]
[1764178280123,3.11,138.61,138.51,2.91]
[1764178280320,0.05069849,138.56,138.54,0.04966609]
[1764178280509,104.1576,138.6,138.54,0.04966609]
[1764178280714,3.16082159,138.56,138.47,2.91]
[1764178280914,104.187,138.56,138.47,2.91]
[1764178281219,3.11,138.51,138.43,2.91]
[1764178281718,9.6102,138.51,138.43,2.91]
[1764178281915,0.05513499,138.48,138.46,0.05447428]
[1764178282514,3.11,138.55,138.46,2.96447428]
[1764178282718,3.11,138.55,138.47,2.91]
[1764178283316,6.4966,138.58,138.49,101.1209]
[1764178283510,6.4966,138.58,138.49,104.0309]
[1764178283714,0.0487524,138.55,138.52,0.05261074]
[1764178283919,0.0487524,138.55,138.52,2.96261074]
[1764178284118,0.0487524,138.55,138.52,0.05261074]
[1764178285319,3.1587524,138.55,138.52,0.05261074]
[1764178285721,0.0487524,138.55,138.52,2.96261074]
[1764178286025,3.1587524,138.55,138.52,0.05261074]
[1764178287123,3.11,138.53,138.44,2.91]
[1764178288029,3.11,138.51,138.42,28.39]
[1764178288226,0.04710454,138.49,138.46,0.04765073]
[1764178289530,3.15710454,138.49,138.46,0.04765073]
[1764178289922,0.04710454,138.49,138.46,2.95765073]
[1764178290426,0.04710454,138.49,138.47,9.4114]
[1764178290638,0.04710454,138.49,138.48,2.91]
[1764178291224,0.04710454,138.49,138.46,0.04765073]
[1764178291432,0.04710454,138.49,138.46,2.95765073]
[1764178291821,0.04710454,138.49,138.47,9.4114]
[1764178292025,3.11,138.57,138.47,2.91]
[1764178292723,3.11,138.55,138.47,2.91]
[1764178293132,0.05535304,138.52,138.5,0.05242275]
[1764178293723,3.16535304,138.52,138.5,0.05242275]
[1764178294026,6.5008,138.49,138.42,6.5036]
[1764178294232,3.11,138.48,138.39,116.19562005]
[1764178294430,3.11,138.53,138.41,2.91]
[1764178294733,3.11,138.53,138.43,104.0725]
[1764178294734,6.4995,138.52,138.43,104.0725]
[1764178294930,9.6095,138.52,138.43,2.91]
[1764178295129,0.05198325,138.49,138.46,0.04583881]
[1764178295931,0.05198325,138.49,138.46,2.95583881]
[1764178296630,3.11,138.57,138.48,2.91]
[1764178297034,3.11,138.57,138.51,6.4996]
[1764178297632,6.496,138.59,138.53,6.4986]
[1764178297935,3.11,138.61,138.53,2.95862509]
[1764178297936,0.04589373,138.55,138.53,2.95862509]
[1764178298138,0.05004107,138.55,138.53,2.95862509]
[1764178298332,0.05004107,138.55,138.53,9.45722509]
[1764178298533,3.11,138.6,138.54,2.91]
[1764178299328,3.11,138.74,138.63,2.91]
[1764178299532,3.11,138.74,138.65,2.91]
[1764178299735,0.04982447,138.7,138.67,0.05341239]
[1764178299931,3.15982447,138.7,138.67,0.05341239]
[1764178300537,3.15982447,138.7,138.58,28.43]
[1764178300538,3.11,138.68,138.58,28.43]
[1764178301039,3.11,138.68,138.58,2.91]
[1764178301239,6.4927,138.66,138.58,9.406]
[1764178301436,3.05,138.73,138.61,101.0267]
[1764178301637,3.05,138.78,138.69,3.19]
[1764178301838,0.05327622,138.75,138.72,3.244244]
[1764178302731,0.05327622,138.75,138.72,0.054244]
[1764178302940,3.10327622,138.75,138.72,0.054244]
[1764178303334,103.9852,138.74,138.64,9.6832]
[1764178303647,103.9997,138.72,138.64,3.19]
[1764178303941,110.498,138.71,138.64,3.19]
[1764178304340,0.04909483,138.69,138.66,0.04627838]
[1764178304841,3.09909483,138.69,138.66,0.04627838]
[1764178305348,0.04909483,138.69,138.66,0.04627838]
[1764178306354,3.09909483,138.69,138.66,0.04627838]
[1764178306744,3.05,138.67,138.66,0.04627838]
[1764178307256,6.4924,138.66,138.59,3.19]
[1764178307451,6.4924,138.66,138.56,3.19]
[1764178307452,104.0531,138.65,138.56,3.19]
[1764178307650,3.05,138.64,138.56,3.19]
[1764178308041,3.05,138.68,138.57,3.19]
[1764178308246,104.0286,138.68,138.57,3.19]
[1764178308447,0.05086587,138.64,138.61,3.24503059]
[1764178309648,0.05086587,138.64,138.61,0.05503059]
[1764178310049,100.9744,138.69,138.61,0.05503059]
[1764178310050,3.05,138.77,138.62,3.19]
[1764178310254,4.9722189,138.86,138.76,3.19]
[1764178310458,105.8239189,138.86,138.76,3.19]
[1764178310752,103.9051,138.85,138.76,3.19]
[1764178310958,6.4847,138.83,138.76,3.19]
[1764178311154,103.9051,138.85,138.76,3.19]
[1764178311155,0.05062461,138.81,138.78,0.05354095]
[1764178311457,0.05062461,138.81,138.78,3.24354095]
[1764178311956,0.00062461,138.81,138.78,0.05354095]
[1764178312455,3.05062461,138.81,138.78,0.05354095]
[1764178313049,9.53632461,138.81,138.78,0.05354095]
[1764178313646,9.5363,138.79,138.78,0.05354095]
[1764178313954,0.00062461,138.81,138.78,0.05354095]
[1764178314349,3.05062461,138.81,138.78,0.05354095]
[1764178314753,110.4275,138.8,138.78,0.05354095]
[1764178314958,3.05,138.79,138.78,0.05354095]
[1764178315157,3.05,138.79,138.71,3.19]
[1764178315860,100.8723,138.83,138.74,3.19]
[1764178315861,3.05,138.83,138.74,3.19]
[1764178316256,0.04613842,138.8,138.77,0.04814837]
[1764178316461,3.09613842,138.8,138.77,0.04814837]
[1764178316646,9.58223842,138.8,138.77,0.04814837]
[1764178316847,103.99073842,138.8,138.77,0.04814837]
[1764178317053,3.05,138.78,138.7,3.19]
[1764178317360,100.9206,138.77,138.7,3.19]
[1764178317952,9.59111386,138.75,138.72,0.05022782]
[1764178318253,3.05,138.74,138.72,0.05022782]
[1764178318755,3.05,138.74,138.66,3.19]
[1764178319753,0.05077534,138.71,138.69,0.0506523]
[1764178320949,3.10077534,138.71,138.61,3.19]
[1764178321149,100.9824,138.69,138.61,3.19]
[1764178321750,126.5285,138.74,138.63,3.19]
[1764178321950,104.0214,138.71,138.6,3.19]
[1764178322155,3.05,138.7,138.6,3.19]
[1764178322355,0.05497693,138.67,138.64,0.05527538]
[1764178322973,104.10477693,138.67,138.64,0.05527538]
[1764178323157,101.0135,138.65,138.55,3.19]
[1764178323466,3.05,138.66,138.56,3.19]
[1764178323668,3.05,138.66,138.58,9.6865]
[1764178323854,3.05,138.66,138.58,3.19]
[1764178324054,100.9919,138.68,138.5,113.21032005]
[1764178324055,101.0495,138.6,138.5,3.19]
[1764178324261,0.0484484,138.56,138.54,0.05061566]
[1764178324757,3.05,138.66,138.56,3.19]
[1764178324965,3.05,138.65,138.56,3.19]
[1764178325157,101.0357,138.62,138.51,12.09322005]
[1764178325364,25.6,138.61,138.51,3.19]
[1764178325568,28.67,138.63,138.51,3.19]
[1764178325767,0.0541081,138.58,138.56,0.04906539]
[1764178325966,0.0465321,138.58,138.56,0.04906539]
[1764178326769,3.0165321,138.58,138.56,0.04906539]
[1764178328065,2.97,138.57,138.48,3.12]
[1764178328267,9.4677,138.57,138.48,3.12]
[1764178328666,2.97,138.57,138.49,3.12]
[1764178328871,2.97,138.57,138.49,9.6207]
[1764178329071,0.04969411,138.54,138.52,3.1726883]
[1764178329277,0.04799345,138.54,138.52,3.16585019]
[1764178331074,0.04799345,138.54,138.52,0.04585019]
[1764178337471,9.62669345,138.54,138.52,0.04585019]
[1764178337676,3.08,138.53,138.52,0.04585019]
[1764178337877,3.08,138.53,138.45,6.5026]
[1764178337878,6.4995,138.52,138.45,6.5026]
[1764178338980,0.05076998,138.5,138.47,0.05378512]
[1764178339377,3.13076998,138.5,138.47,0.05378512]
[1764178340081,0.05076998,138.5,138.47,0.05378512]
[1764178340579,3.13076998,138.5,138.47,0.05378512]
[1764178342178,6.5012,138.49,138.47,0.05378512]
[1764178342380,3.08,138.48,138.47,0.05378512]
[1764178342682,0.05076998,138.5,138.47,0.05378512]
[1764178343078,0.05076998,138.5,138.47,2.96378512]
[1764178343478,0.05076998,138.5,138.47,0.05378512]
[1764178344387,0.05076998,138.5,138.47,6.55558512]
[1764178344682,0.05076998,138.5,138.48,2.91]
[1764178345080,0.05076998,138.5,138.48,6.5013]
[1764178345576,0.05076998,138.5,138.47,2.96378512]
[1764178346686,0.05076998,138.5,138.48,6.5013]
[1764178347084,0.05076998,138.5,138.47,2.96378512]
[1764178347386,0.05076998,138.5,138.48,6.5013]
[1764178347687,0.05076998,138.5,138.48,9.4113]
[1764178348080,3.08,138.58,138.51,6.5]
[1764178348383,3.08,138.62,138.52,104.0116]
[1764178348577,3.08,138.62,138.53,2.91]
[1764178348785,104.1156,138.62,138.53,2.91]
[1764178349087,3.08,138.61,138.53,2.91]
[1764178349275,0.05296096,138.59,138.56,0.05016808]
[1764178349479,3.13296096,138.59,138.56,0.05016808]
[1764178349686,6.4969,138.58,138.56,0.05016808]
[1764178353887,3.08,138.57,138.56,0.05016808]
[1764178354297,3.08,138.57,138.5,2.91]
[1764178354486,101.0127,138.65,138.5,2.91]
[1764178354789,3.08,138.66,138.58,6.4967]
[1764178354988,104.0867,138.66,138.55,2.91]
[1764178355184,3.08,138.66,138.56,2.91]
[1764178355387,0.05412241,138.62,138.59,0.0454661]
[1764178357082,3.13412241,138.62,138.59,0.0454661]
[1764178357288,0.05412241,138.62,138.59,2.9554661]
[1764178357689,0.05412241,138.62,138.59,64.9554661]
[1764178357891,0.05412241,138.62,138.6,2.91]
[1764178358691,0.05412241,138.62,138.59,64.9554661]
[1764178359294,0.05412241,138.62,138.6,2.91]
[1764178361805,0.05412241,138.62,138.61,3.13]
[1764178363695,2.95,138.7,138.61,104.17]
[1764178363995,2.95,138.65,138.57,3.13]
[1764178364204,2.95,138.64,138.57,3.13]
[1764178364406,6.4955,138.61,138.57,3.13]
[1764178364704,9.4455,138.61,138.57,3.13]
[1764178364906,0.04639267,138.6,138.58,0.04569589]
[1764178365304,0.04639267,138.6,138.58,9.67239589]
[1764178365492,0.04639267,138.6,138.59,3.13]
[1764178366601,2.95,138.68,138.6,101.0466]
[1764178366807,2.95,138.72,138.63,101.0228]
[1764178367099,2.95,138.72,138.62,3.13]
[1764178367100,2.95,138.72,138.64,3.13]
[1764178367297,2.95,138.72,138.65,3.13]
[1764178367895,0.05141805,138.7,138.67,0.0548548]
[1764178368196,3.00141805,138.7,138.67,0.0548548]
[1764178369098,2.95,138.68,138.67,0.0548548]
[1764178369391,2.95,138.68,138.59,3.13]
[1764178370103,103.9712,138.64,138.54,3.13]
[1764178370303,0.05304948,138.6,138.58,0.04695914]
[1764178370901,126.4172,138.7,138.61,3.13]
[1764178370902,2.95,138.7,138.61,3.13]
[1764178371100,2.95,138.74,138.64,3.13]
[1764178371410,2.95,138.74,138.66,3.13]
[1764178371809,2.95,138.74,138.67,6.4924]
[1764178372104,3.00304007,138.71,138.69,0.04663921]
[1764178374003,0.05304007,138.71,138.69,0.04663921]
[1764178374197,2.95,138.79,138.71,3.13]
[1764178374401,2.95,138.77,138.67,28.57]
[1764178374605,2.95,138.77,138.67,3.13]
[1764178374807,2.95,138.76,138.67,3.13]
[1764178375107,6.4896,138.74,138.68,3.13]
[1764178375310,0.05526298,138.72,138.7,0.05305432]
[1764178376111,0.05526298,138.72,138.7,3.18305432]
[1764178376404,2.95,138.78,138.71,3.13]
[1764178376795,6.4885,138.76,138.71,3.13]
[1764178377201,0.05269063,138.75,138.72,0.05363957]
[1764178377813,0.05269063,138.75,138.72,3.18363957]
[1764178380406,0.05269063,138.75,138.73,3.13]
[1764178380607,0.05269063,138.75,138.72,3.18363957]
[1764178380810,2.95,138.83,138.77,6.4878]
[1764178381108,11.3561189,138.86,138.77,3.13]
[1764178381303,2.95,138.85,138.77,3.13]
[1764178381704,2.95,138.85,138.78,3.13]
[1764178381905,2.95,138.85,138.73,133.31133451]
[1764178381906,0.05121076,138.83,138.81,3.13]
[1764178382408,0.05121076,138.83,138.81,9.6158]
[1764178382609,1.9222189,138.86,138.84,3.13]
[1764178382999,1.9222189,138.86,138.85,3.13]
[1764178383199,1.9222189,138.86,138.82,3.13]
[1764178383399,1.9222189,138.86,138.83,3.13]
[1764178383607,1.96812454,138.86,138.85,3.13]
[1764178383814,2.95,138.94,138.85,65.13]
[1764178384009,2.95,138.94,138.86,3.13]
[1764178384706,2.95,138.94,138.87,3.13]
[1764178384911,0.04879273,138.92,138.89,0.05228316]
[1764178385309,2.99879273,138.92,138.89,0.05228316]
[1764178385717,2.95,138.91,138.84,3.13]
[1764178386018,2.99,138.96,138.84,103.9998]
[1764178386312,9.4704,138.94,138.86,9.5234]
[1764178386710,0.04608616,138.91,138.89,0.04940021]
[1764178387306,0.04608616,138.91,138.89,3.08940021]
[1764178387912,0.04608616,138.91,138.89,0.04940021]
[1764178389507,6.68085886,139.07,138.92,3.04]
[1764178389812,2.99,139.09,138.98,3.04]
[1764178390009,2.99,139.09,138.99,3.04]
[1764178390415,2.99,139.09,139.0,3.04]
[1764178390823,0.05247192,139.05,139.03,0.05510466]
[1764178391126,1.8972715,139.14,139.04,3.06]
[1764178391127,2.94,139.13,139.04,3.06]
[1764178391906,2.94,139.13,139.05,62.0]
[1764178392325,0.05393482,139.1,139.07,0.04677256]
[1764178392512,2.99393482,139.1,139.07,0.04677256]
[1764178393226,0.05393482,139.1,139.07,0.04677256]
[1764178393408,0.05393482,139.1,139.07,3.10677256]
[1764178393608,0.00393482,139.1,139.07,3.10677256]
[1764178393814,1.8972715,139.14,139.07,3.10677256]
[1764178394511,2.94,139.18,139.07,3.10677256]
[1764178394816,2.94,139.13,139.11,0.05118424]
[1764178395013,100.6526,139.15,139.11,0.05118424]
[1764178395210,2.94,139.15,139.11,0.05118424]
[1764178395517,2.94,139.13,139.11,0.05118424]
[1764178395721,103.6053,139.13,139.11,0.05118424]
[1764178395916,103.6053,139.13,139.02,3.06]
[1764178395917,100.7028,139.08,139.02,3.06]
[1764178396119,100.6726,139.12,139.02,3.06]
[1764178396816,0.04920287,139.08,139.06,0.04713983]
[1764178397215,103.69130287,139.08,139.06,0.04713983]
[1764178397406,0.04920287,139.08,139.02,3.06]
[1764178398516,0.04920287,139.08,139.04,3.10963492]
[1764178398720,0.05254231,139.07,139.04,3.10963492]
[1764178399019,2.94,139.14,139.04,3.10963492]
[1764178399225,103.5685,139.18,139.07,3.06]
[1764178399426,2.94,139.17,139.07,3.06]
[1764178399618,0.21842,139.2,139.08,3.06]
[1764178399923,0.21842,139.2,139.09,3.06]
[1764178399924,3.15842,139.2,139.09,3.06]
[1764178400123,2.94,139.17,139.09,3.06]
[1764178400420,2.94,139.14,139.13,0.05091045]
[1764178400721,2.94,139.14,139.05,3.06]
[1764178401316,2.94,139.18,139.06,3.06]
[1764178401521,0.05272466,139.13,139.12,3.06]
[1764178401718,0.04638179,139.14,139.12,3.06]
[1764178402521,0.04638179,139.14,139.11,0.05532568]
[1764178402921,0.04638179,139.14,139.11,3.11532568]
[1764178403317,0.04638179,139.14,139.11,0.05532568]
[1764178403519,2.98638179,139.14,139.11,0.05532568]
[1764178403821,0.04638179,139.14,139.11,0.05532568]
[1764178404814,2.98638179,139.14,139.11,0.05532568]
[1764178405017,103.6109,139.12,139.03,3.06]
[1764178405219,107.1493,139.11,139.03,3.06]
[1764178405419,103.6245,139.1,139.03,3.06]
[1764178405723,6.473,139.09,139.0,3.06]
[1764178406030,100.7056,139.07,139.0,3.06]
[1764178406222,2.94,139.05,139.03,0.05086051]
[1764178406420,2.94,139.05,138.96,3.06]
[1764178406615,9.4139,139.08,138.98,3.06]
[1764178406814,2.94,139.08,138.99,3.06]
[1764178407327,2.94,139.08,139.0,3.06]
[1764178407621,0.05387674,139.05,139.02,0.0496938]
[1764178408122,0.05387674,139.05,139.02,3.1096938]
[1764178408316,107.61483451,139.12,139.04,3.06]
[1764178408317,2.94,139.12,139.04,3.06]
[1764178408518,103.5835,139.16,139.06,3.06]
[1764178408718,2.94,139.16,139.06,3.06]
[1764178408914,2.94,139.16,139.07,9.5336]
[1764178409119,2.94,139.16,139.07,3.06]
[1764178409614,0.05303158,139.13,139.1,0.05338919]
[1764178410119,0.05303158,139.13,139.1,3.11338919]
[1764178410316,0.21842,139.2,139.13,3.06]
[1764178410820,0.21842,139.2,139.13,9.5308]
[1764178411020,3.15842,139.2,139.09,3.06]
[1764178411220,3.15842,139.2,139.11,3.06]
[1764178411427,0.05393131,139.16,139.13,3.11481679]
[1764178411628,0.05393131,139.16,139.13,0.05481679]
[1764178412225,2.99393131,139.16,139.13,0.05481679]
[1764178412633,6.4705,139.15,139.13,0.05481679]
[1764178412830,2.94,139.14,139.05,3.06]
[1764178413330,103.6054,139.13,139.05,3.06]
[1764178413521,2.94,139.12,139.0,28.6]
[1764178413724,2.94,139.12,139.0,129.3523]
[1764178413938,2.99066182,139.08,139.06,0.04837064]
[1764178414123,2.98566631,139.08,139.0,28.6]
[1764178414627,2.94,139.05,138.96,3.06]
[1764178414936,9.4155,139.04,138.96,3.06]
[1764178415138,2.94,139.04,138.96,3.06]
[1764178415434,0.05019799,139.01,138.99,0.05322297]
[1764178416328,28.5,139.09,138.99,103.87162297]
[1764178416530,2.94,139.09,139.01,100.7451]
[1764178416835,2.94,139.09,139.03,6.4753]
[1764178417035,2.94,139.09,139.03,100.7315]
[1764178417437,28.5,139.13,139.04,100.7223]
[1764178417641,0.05120454,139.07,139.05,0.04563202]
[1764178417832,2.94,139.13,139.05,0.04563202]
[1764178418023,2.94,139.17,139.08,100.6961]
[1764178418536,2.94,139.17,139.07,103.7634]
[1764178419124,2.94,139.17,139.07,9.5336]
[1764178419324,2.94,139.09,139.0,103.8113]
[1764178419526,2.94,139.09,139.0,103.8117]
[1764178419729,2.94,139.09,138.99,100.7619]
[1764178419730,2.94,139.17,139.06,3.06]
[1764178419935,2.94,139.15,139.06,3.06]
[1764178420341,2.94,139.19,139.09,100.6871]
[1764178420533,0.05549709,139.12,139.1,3.06]
[1764178420736,2.94,139.19,139.1,3.11413648]
[1764178421026,0.05224046,139.12,139.06,100.7071]
[1764178421231,0.0460063,139.1,139.07,103.752]
[1764178421430,3.15,139.18,139.09,103.7341]
[1764178421634,3.15,139.18,139.09,3.05]
[1764178422035,3.15,139.17,139.06,100.7071]
[1764178422234,28.92842,139.2,139.09,3.05]
[1764178422536,28.92842,139.2,139.14,3.05]
[1764178422537,0.05479153,139.16,139.14,3.05]
[1764178422737,0.05479153,139.16,139.13,0.05005925]
[1764178423541,3.20479153,139.16,139.13,0.05005925]
[1764178424528,3.15,139.15,139.03,3.05]
[1764178424729,3.15,139.12,139.0,3.05]
[1764178424930,3.15,139.12,139.01,3.05]
[1764178425235,3.15,139.12,139.04,103.7727]
[1764178425439,0.04935255,139.09,139.07,0.05244985]
[1764178426141,0.04935255,139.09,139.08,3.05]
[1764178426329,3.15,139.16,139.08,3.05]
[1764178426941,3.15,139.16,139.03,100.7287]
[1764178426942,3.15,139.09,138.99,100.7601]
[1764178427142,3.15,139.04,138.94,6.26419536]
[1764178427344,3.15,138.96,138.86,103.9019]
[1764178427639,100.726,139.04,138.86,103.9019]
[1764178427640,3.15,139.06,138.96,3.05]
[1764178427842,3.15,139.06,139.0,0.04975417]
[1764178428030,0.04605068,139.02,139.0,0.04975417]
[1764178428434,3.19605068,139.02,139.0,0.04975417]
[1764178428642,0.04605068,139.02,139.0,0.04975417]
[1764178429845,0.04605068,139.02,139.0,103.85205417]
[1764178430146,89.39,139.11,139.01,103.7918]
[1764178430342,3.15,139.1,139.01,3.05]
[1764178430749,3.15,139.1,139.0,6.4768]
[1764178431045,3.15,139.09,139.0,6.4768]
[1764178431243,0.0528181,139.06,139.03,0.05025155]
[1764178433146,3.15,138.99,138.93,6.26419536]
[1764178433337,3.15,138.99,138.91,100.8142]
[1764178434142,0.04647687,138.96,138.94,0.05167004]
[1764178434533,0.04647687,138.96,138.94,3.10167004]
[1764178434737,3.15,139.04,138.95,100.7875]
[1764178435546,3.15,139.04,138.97,6.4779]
[1764178435742,0.04856577,139.02,138.99,0.05216285]
[1764178436951,0.04856577,139.02,138.99,103.85736285]
[1764178437136,3.15,139.1,139.01,100.7438]
[1764178437447,3.15,139.1,139.0,103.8012]
[1764178437850,3.15,139.1,139.02,6.4757]
[1764178438142,3.15,139.1,139.05,0.05317369]
[1764178438548,3.15,139.08,139.05,0.05317369]
[1764178439741,3.15,139.06,138.97,6.26419536]
[1764178439947,3.15,139.06,138.96,3.05]
[1764178440144,3.15,139.06,138.98,100.7659]
[1764178440446,3.15,139.11,139.02,100.7357]
[1764178440645,3.15,139.11,139.05,6.4743]
[1764178440853,0.05302352,139.09,139.07,0.05508297]
[1764178441049,0.05341193,139.09,139.05,100.715]
[1764178441247,0.05341193,139.09,139.08,3.05]
[1764178441560,3.15,139.15,139.08,3.05]
[1764178441944,3.15,139.18,139.06,3.05]
[1764178442144,3.15,139.18,139.07,3.05]
[1764178442448,3.15,139.18,139.11,0.05373146]
[1764178443054,3.15,139.16,139.11,0.05373146]
[1764178443550,6.4721,139.11,139.02,3.05]
[1764178443945,103.7928,139.16,139.05,3.05]
[1764178444150,3.15,139.12,139.01,3.05]
[1764178444549,0.05193648,139.08,139.05,0.04708948]
[1764178444753,3.15,139.07,138.98,3.05]
[1764178444953,3.15,139.11,139.01,6.4763]
[1764178445651,3.15,139.11,139.0,3.05]
[1764178445652,3.15,139.11,139.02,6.4759]
[1764178445858,0.04638042,139.08,139.05,0.04656251]
[1764178446058,2.97638042,139.08,139.05,0.04656251]
[1764178446256,2.93,139.07,139.05,0.04656251]
[1764178446556,2.97638042,139.08,139.05,0.04656251]
[1764178446860,2.93,139.06,139.05,0.04656251]
[1764178447660,2.97638042,139.08,139.05,0.04656251]
[1764178448255,0.04638042,139.08,139.05,0.04656251]
[1764178448450,2.97638042,139.08,139.05,0.04656251]
[1764178449064,103.67678042,139.08,139.05,0.04656251]
[1764178449257,2.93,139.05,138.97,3.18]
[1764178449560,100.6932,139.09,138.99,3.18]
[1764178449561,2.93,139.09,138.99,3.18]
[1764178450058,103.6284,139.08,138.99,3.18]
[1764178450356,0.04655345,139.05,139.02,0.04592046]
[1764178450558,0.04655345,139.05,139.02,3.22592046]
[1764178450759,2.93,139.12,139.03,3.18]
[1764178450960,103.6066,139.11,139.03,3.18]
[1764178451160,9.4027,139.1,139.01,6.4765]
[1764178451455,2.93,139.1,139.01,3.12]
[1764178451656,2.93,139.1,139.03,6.4755]
[1764178451851,0.05393616,139.07,139.05,3.12]
[1764178452054,3.0,139.14,139.05,65.12]
[1764178452359,3.0,139.16,139.08,6.473]
[1764178452559,3.0,139.15,139.06,3.12]
[1764178452858,6.4708,139.14,139.06,9.594]
[1764178453163,3.0,139.1,139.02,3.12]
[1764178453364,0.05423749,139.11,139.08,0.05438259]
[1764178453554,103.6622,139.13,139.02,3.12]
[1764178453863,0.04539439,139.08,139.05,3.16555709]
[1764178455055,0.04539439,139.08,139.05,9.64005709]
[1764178455257,0.04539439,139.08,139.06,3.12]
[1764178455458,28.68,139.17,139.06,3.12]
[1764178455658,3.0,139.13,139.04,6.475]
[1764178455961,3.0,139.13,139.05,65.12]
[1764178456162,6.4717,139.12,139.05,65.12]
[1764178456460,6.4717,139.12,139.07,0.05523271]
[1764178456858,9.4717,139.12,139.07,0.05523271]
[1764178457053,6.4708,139.14,139.08,6.65534421]
[1764178457259,3.0,139.13,139.09,6.65534421]
[1764178457455,100.6425,139.16,139.1,6.70970222]
[1764178457660,100.6425,139.16,139.11,6.65534421]
[1764178458062,6.4714,139.13,139.11,6.65534421]
[1764178458459,6.4707,139.14,139.11,6.65534421]
[1764178458658,100.6425,139.16,139.11,6.65534421]
[1764178458961,100.6544,139.14,139.11,6.65534421]
[1764178459162,6.4712,139.13,139.11,6.65534421]
[1764178459564,1.1,139.12,139.05,3.12]
[1764178459768,7.5719,139.11,139.06,6.65679438]
[1764178459958,7.5719,139.11,139.05,3.12]
[1764178460154,1.1,139.09,139.01,3.12]
[1764178460359,6.474,139.07,139.01,3.12]
[1764178460565,25.64,139.11,139.01,3.12]
[1764178460863,0.04878715,139.05,139.03,3.17036929]
[1764178461056,0.05388135,139.05,139.03,3.17036929]
[1764178461955,0.05388135,139.05,139.03,0.05036929]
[1764178462154,1.15388135,139.05,138.95,11.70260943]
[1764178462356,1.15388135,139.05,138.95,3.12]
[1764178462357,101.822,139.05,138.95,3.12]
[1764178462563,1.1,139.04,138.95,3.12]
[1764178463061,1.1,139.09,139.0,3.12]
[1764178463260,0.05038819,139.06,139.03,3.17098667]
[1764178463464,0.05280028,139.06,139.03,3.17021949]
[1764178464168,0.05280028,139.06,139.05,3.12]
[1764178464870,1.1,139.13,139.06,6.4743]